[Event "Open international de Salon de Provence"]
[Site "Salon de Provence, France"]
[Date "2024.07.06"]
[Round "1.1"]
[White "Busson, Benoit"]
[Black "Gusain, Himal"]
[Result "0-1"]
[WhiteElo "1885"]
[BlackElo "2490"]
[PlyCount "98"]
[EventDate "2024.??.??"]
[TimeControl "1"]

1. e4 {[%emt 0:00:00]} e6 {[%emt 0:00:00]} 2. d4 {[%emt 0:00:00]} d5 {[%emt 0:
00:00]} 3. e5 {[%emt 0:00:00]} c5 {[%emt 0:00:00]} 4. Nf3 {[%emt 0:00:00]} Nc6
{[%emt 0:00:00]} 5. Bd3 {[%emt 0:00:00]} cxd4 {[%emt 0:00:00]} 6. O-O {[%emt 0:
00:00]} Nge7 {[%emt 0:00:00]} 7. Bf4 {[%emt 0:00:00]} Ng6 {[%emt 0:00:00]} 8.
Bg3 {[%emt 0:00:00]} Qb6 {[%emt 0:00:00]} 9. Nbd2 {[%emt 0:00:00]} Qxb2 {
[%emt 0:00:00]} 10. h4 {[%emt 0:00:00]} f6 {[%emt 0:00:00]} 11. Qe2 {[%emt 0:
00:00]} Be7 {[%emt 0:00:00]} 12. Nb3 {[%emt 0:00:00]} O-O {[%emt 0:00:00]} 13.
Rab1 {[%emt 0:00:00]} Qc3 {[%emt 0:00:00]} 14. Rfd1 {[%emt 0:00:00]} Ngxe5 {
[%emt 0:00:00]} 15. Nbxd4 {[%emt 0:00:00]} Nxf3+ {[%emt 0:00:00]} 16. Nxf3 {
[%emt 0:00:00]} e5 {[%emt 0:00:00]} 17. Rb3 {[%emt 0:00:00]} Qa5 {[%emt 0:00:
00]} 18. Rb5 {[%emt 0:00:00]} Qxa2 {[%emt 0:00:00]} 19. Rxd5 {[%emt 0:00:00]}
Be6 {[%emt 0:00:00]} 20. Rb5 {[%emt 0:00:00]} Rab8 {[%emt 0:00:00]} 21. Rdb1 {
[%emt 0:00:00]} Qa4 {[%emt 0:00:00]} 22. Rxb7 {[%emt 0:00:00]} Rxb7 {[%emt 0:
00:00]} 23. Rxb7 {[%emt 0:00:00]} Bc5 {[%emt 0:00:00]} 24. c3 {[%emt 0:00:00]}
Rf7 {[%emt 0:00:00]} 25. Rxf7 {[%emt 0:00:00]} Bxf7 {[%emt 0:00:00]} 26. Kh2 {
[%emt 0:00:00]} Ne7 {[%emt 0:00:00]} 27. Nxe5 {[%emt 0:00:00]} fxe5 {[%emt 0:
00:00]} 28. Qxe5 {[%emt 0:00:00]} Qc6 {[%emt 0:00:00]} 29. Be4 {[%emt 0:00:00]}
Qb6 {[%emt 0:00:00]} 30. Qg5 {[%emt 0:00:00]} h6 {[%emt 0:00:00]} 31. Qd2 {
[%emt 0:00:00]} Bg6 {[%emt 0:00:00]} 32. Bxg6 {[%emt 0:00:00]} Qxg6 {[%emt 0:
00:00]} 33. Qe2 {[%emt 0:00:00]} Bd6 {[%emt 0:00:00]} 34. Qa2+ {[%emt 0:00:00]}
Kh7 {[%emt 0:00:00]} 35. Qxa7 {[%emt 0:00:00]} Nf5 {[%emt 0:00:00]} 36. Bxd6 {
[%emt 0:00:00]} Qxd6+ {[%emt 0:00:00]} 37. Kh3 {[%emt 0:00:00]} Qf6 {[%emt 0:
00:00]} 38. g3 {[%emt 0:00:00]} Qxc3 {[%emt 0:00:00]} 39. Qa4 {[%emt 0:00:00]}
Qd3 {[%emt 0:00:00]} 40. Qf4 {[%emt 0:00:00]} Nd6 {[%emt 0:00:00]} 41. h5 {
[%emt 0:00:00]} Qf5+ {[%emt 0:00:00]} 42. Qxf5+ {[%emt 0:00:00]} Nxf5 {[%emt 0:
00:00]} 43. Kg4 {[%emt 0:00:00]} Ne7 {[%emt 0:00:00]} 44. Kf4 {[%emt 0:00:00]}
Kg8 {[%emt 0:00:00]} 45. g4 {[%emt 0:00:00]} Kf7 {[%emt 0:00:00]} 46. Ke4 {
[%emt 0:00:00]} Ke6 {[%emt 0:00:00]} 47. f4 {[%emt 0:00:00]} Nd5 {[%emt 0:00:
00]} 48. g5 {[%emt 0:00:00]} Ne7 {[%emt 0:00:00]} 49. gxh6 {[%emt 0:00:00]}
gxh6 {[%emt 0:01:27]} 0-1

[Event "Open international de Salon de Provence"]
[Site "Salon de Provence, France"]
[Date "2024.07.06"]
[Round "1.2"]
[White "Dimitrov, Radoslav"]
[Black "Espanet, Fabien"]
[Result "1-0"]
[WhiteElo "2480"]
[BlackElo "1851"]
[PlyCount "97"]
[EventDate "2024.??.??"]
[TimeControl "1"]

1. c4 {[%emt 0:00:00]} Nf6 {[%emt 0:00:00]} 2. Nc3 {[%emt 0:00:00]} g6 {
[%emt 0:00:00]} 3. g3 {[%emt 0:00:00]} Bg7 {[%emt 0:00:00]} 4. Bg2 {[%emt 0:00:
00]} O-O {[%emt 0:00:00]} 5. d3 {[%emt 0:00:00]} c6 {[%emt 0:00:00]} 6. e4 {
[%emt 0:00:00]} e5 {[%emt 0:00:00]} 7. Nge2 {[%emt 0:00:00]} d6 {[%emt 0:00:00]
} 8. O-O {[%emt 0:00:00]} Ne8 {[%emt 0:00:00]} 9. d4 {[%emt 0:00:00]} Nc7 {
[%emt 0:00:00]} 10. Be3 {[%emt 0:00:00]} b5 {[%emt 0:00:00]} 11. dxe5 {[%emt 0:
00:00]} dxe5 {[%emt 0:00:00]} 12. cxb5 {[%emt 0:00:00]} cxb5 {[%emt 0:00:00]}
13. a4 {[%emt 0:00:00]} b4 {[%emt 0:00:00]} 14. Nb5 {[%emt 0:00:00]} Nxb5 {
[%emt 0:00:00]} 15. axb5 {[%emt 0:00:00]} Qe7 {[%emt 0:00:00]} 16. Qd5 {
[%emt 0:00:00]} Bb7 {[%emt 0:00:00]} 17. Qc5 {[%emt 0:00:00]} Qxc5 {[%emt 0:00:
00]} 18. Bxc5 {[%emt 0:00:00]} Rc8 {[%emt 0:00:00]} 19. Bxb4 {[%emt 0:00:00]}
Rc2 {[%emt 0:00:00]} 20. Rfd1 {[%emt 0:00:00]} Bf6 {[%emt 0:00:00]} 21. Rd2 {
[%emt 0:00:00]} Rxd2 {[%emt 0:00:00]} 22. Bxd2 {[%emt 0:00:00]} Nd7 {[%emt 0:
00:00]} 23. Be3 {[%emt 0:00:00]} a6 {[%emt 0:00:00]} 24. bxa6 {[%emt 0:00:00]}
Rxa6 {[%emt 0:00:00]} 25. Rxa6 {[%emt 0:00:00]} Bxa6 {[%emt 0:00:00]} 26. Nc3 {
[%emt 0:00:00]} Bd8 {[%emt 0:00:00]} 27. Bf1 {[%emt 0:00:00]} Bb7 {[%emt 0:00:
00]} 28. Bc4 {[%emt 0:00:00]} Nb6 {[%emt 0:00:00]} 29. Ba2 {[%emt 0:00:00]} Kf8
{[%emt 0:00:00]} 30. f3 {[%emt 0:00:00]} f6 {[%emt 0:00:00]} 31. Kf2 {[%emt 0:
00:00]} Ke7 {[%emt 0:00:00]} 32. b4 {[%emt 0:00:00]} Nd7 {[%emt 0:00:00]} 33.
Bd5 {[%emt 0:00:00]} Bxd5 {[%emt 0:00:00]} 34. Nxd5+ {[%emt 0:00:00]} Kd6 {
[%emt 0:00:00]} 35. Ke2 {[%emt 0:00:00]} f5 {[%emt 0:00:00]} 36. Kd3 {[%emt 0:
00:00]} Nf6 {[%emt 0:00:00]} 37. Bc5+ {[%emt 0:00:00]} Kc6 {[%emt 0:00:00]} 38.
Nxf6 {[%emt 0:00:00]} Bxf6 {[%emt 0:00:00]} 39. Kc4 {[%emt 0:00:00]} fxe4 {
[%emt 0:00:00]} 40. fxe4 {[%emt 0:00:00]} Bd8 {[%emt 0:00:00]} 41. b5+ {
[%emt 0:00:00]} Kd7 {[%emt 0:00:00]} 42. Kd5 {[%emt 0:00:00]} Bc7 {[%emt 0:00:
00]} 43. b6 {[%emt 0:00:00]} Bb8 {[%emt 0:00:00]} 44. g4 {[%emt 0:00:00]} h6 {
[%emt 0:00:00]} 45. h4 {[%emt 0:00:00]} h5 {[%emt 0:00:00]} 46. g5 {[%emt 0:00:
00]} Kd8 {[%emt 0:00:00]} 47. Kc6 {[%emt 0:00:00]} Kc8 {[%emt 0:00:00]} 48. b7+
{[%emt 0:00:00]} Kd8 {[%emt 0:00:00]} 49. Bd6 {[%emt 0:00:00]} 1-0

[Event "Open international de Salon de Provence"]
[Site "Salon de Provence, France"]
[Date "2024.07.06"]
[Round "1.3"]
[White "Guillaume, Jean-Tristan"]
[Black "Nikolov, Momchil"]
[Result "0-1"]
[WhiteElo "1834"]
[BlackElo "2460"]
[PlyCount "60"]
[EventDate "2024.??.??"]
[TimeControl "1"]

1. e4 {[%emt 0:00:00]} c5 {[%emt 0:00:00]} 2. Nf3 {[%emt 0:00:00]} a6 {[%emt 0:
00:00]} 3. c3 {[%emt 0:00:00]} d5 {[%emt 0:00:00]} 4. exd5 {[%emt 0:00:00]} Nf6
{[%emt 0:00:00]} 5. d4 {[%emt 0:00:00]} cxd4 {[%emt 0:00:00]} 6. cxd4 {[%emt 0:
00:00]} Nxd5 {[%emt 0:00:00]} 7. Nc3 {[%emt 0:00:00]} Nc6 {[%emt 0:00:00]} 8.
Bc4 {[%emt 0:00:00]} Be6 {[%emt 0:00:00]} 9. Qe2 {[%emt 0:00:00]} Rc8 {[%emt 0:
00:00]} 10. Bd3 {[%emt 0:00:00]} Ncb4 {[%emt 0:00:00]} 11. Bb1 {[%emt 0:00:00]}
Nxc3 {[%emt 0:00:00]} 12. bxc3 {[%emt 0:00:00]} Nd5 {[%emt 0:00:00]} 13. Bd2 {
[%emt 0:00:00]} Nxc3 {[%emt 0:00:00]} 14. Bxc3 {[%emt 0:00:00]} Rxc3 {[%emt 0:
00:00]} 15. Qd2 {[%emt 0:00:00]} Rc7 {[%emt 0:00:00]} 16. O-O {[%emt 0:00:00]}
Bd5 {[%emt 0:00:00]} 17. Ne5 {[%emt 0:00:00]} g6 {[%emt 0:00:00]} 18. Rd1 {
[%emt 0:00:00]} Bg7 {[%emt 0:00:00]} 19. Bc2 {[%emt 0:00:00]} O-O {[%emt 0:00:
00]} 20. Bb3 {[%emt 0:00:00]} Qd6 {[%emt 0:00:00]} 21. Bxd5 {[%emt 0:00:00]}
Qxd5 {[%emt 0:00:00]} 22. Nf3 {[%emt 0:00:00]} Rfc8 {[%emt 0:00:00]} 23. Rac1 {
[%emt 0:00:00]} Rxc1 {[%emt 0:00:00]} 24. Rxc1 {[%emt 0:00:00]} Rxc1+ {[%emt 0:
00:00]} 25. Qxc1 {[%emt 0:00:00]} Bxd4 {[%emt 0:00:00]} 26. h3 {[%emt 0:00:00]}
Bf6 {[%emt 0:00:00]} 27. Qc8+ {[%emt 0:00:00]} Kg7 {[%emt 0:00:00]} 28. a4 {
[%emt 0:00:00]} Qd1+ {[%emt 0:00:00]} 29. Kh2 {[%emt 0:00:00]} Qxa4 {[%emt 0:
00:00]} 30. Qxb7 {[%emt 0:00:00]} a5 {[%emt 0:00:00]} 0-1

[Event "Open international de Salon de Provence"]
[Site "Salon de Provence, France"]
[Date "2024.07.06"]
[Round "1.4"]
[White "Enchev, Ivajlo"]
[Black "Kosteniuk, Kristina"]
[Result "1-0"]
[WhiteElo "2416"]
[BlackElo "1819"]
[PlyCount "101"]
[EventDate "2024.??.??"]
[TimeControl "1"]

1. Nf3 {[%emt 0:00:00]} f5 {[%emt 0:00:00]} 2. d4 {[%emt 0:00:00]} Nf6 {
[%emt 0:00:00]} 3. g3 {[%emt 0:00:00]} g6 {[%emt 0:00:00]} 4. Bg2 {[%emt 0:00:
00]} Bg7 {[%emt 0:00:00]} 5. c4 {[%emt 0:00:00]} O-O {[%emt 0:00:00]} 6. Nc3 {
[%emt 0:00:00]} d6 {[%emt 0:00:00]} 7. O-O {[%emt 0:00:00]} c6 {[%emt 0:00:00]}
8. b3 {[%emt 0:00:00]} Na6 {[%emt 0:00:00]} 9. Bb2 {[%emt 0:00:00]} Qe8 {
[%emt 0:00:00]} 10. d5 {[%emt 0:00:00]} Bd7 {[%emt 0:00:00]} 11. Nd4 {[%emt 0:
00:00]} Nc7 {[%emt 0:00:00]} 12. Qd3 {[%emt 0:00:00]} Rd8 {[%emt 0:00:00]} 13.
Rad1 {[%emt 0:00:00]} e5 {[%emt 0:00:00]} 14. dxe6 {[%emt 0:00:00]} Nxe6 {
[%emt 0:00:00]} 15. Nxe6 {[%emt 0:00:00]} Bxe6 {[%emt 0:00:00]} 16. Ba3 {
[%emt 0:00:00]} Rf7 {[%emt 0:00:00]} 17. Bxd6 {[%emt 0:00:00]} Rfd7 {[%emt 0:
00:00]} 18. c5 {[%emt 0:00:00]} Bf8 {[%emt 0:00:00]} 19. Qd4 {[%emt 0:00:00]}
Qf7 {[%emt 0:00:00]} 20. Qb4 {[%emt 0:03:44]} Bxd6 {[%emt 0:00:00]} 21. Rxd6 {
[%emt 0:00:00]} Rxd6 {[%emt 0:00:00]} 22. cxd6 {[%emt 0:00:00]} Ne8 {[%emt 0:
00:00]} 23. Rd1 {[%emt 0:00:00]} Rd7 {[%emt 0:00:00]} 24. e4 {[%emt 0:00:00]}
Qf6 {[%emt 0:00:00]} 25. f4 {[%emt 0:00:00]} fxe4 {[%emt 0:00:00]} 26. Nxe4 {
[%emt 0:00:00]} Qf5 {[%emt 0:00:00]} 27. Ng5 {[%emt 0:00:00]} a5 {[%emt 0:00:
00]} 28. Qe1 {[%emt 0:00:00]} Bf7 {[%emt 0:00:00]} 29. Qe5 {[%emt 0:00:00]} Qc2
{[%emt 0:00:00]} 30. Bf3 {[%emt 0:00:00]} Qf5 {[%emt 0:00:00]} 31. h3 {[%emt 0:
00:00]} Qf6 {[%emt 0:00:00]} 32. Ne4 {[%emt 0:00:00]} Qxe5 {[%emt 0:00:00]} 33.
fxe5 {[%emt 0:00:00]} Bd5 {[%emt 0:00:00]} 34. Bg4 {[%emt 0:00:00]} Rd8 {
[%emt 0:00:00]} 35. Nc5 {[%emt 0:00:00]} Nxd6 {[%emt 0:00:00]} 36. exd6 {
[%emt 0:00:00]} Rxd6 {[%emt 0:00:00]} 37. Nxb7 {[%emt 0:00:00]} Rf6 {[%emt 0:
00:00]} 38. Nxa5 {[%emt 0:00:00]} h5 {[%emt 0:00:00]} 39. Be2 {[%emt 0:00:00]}
Rf8 {[%emt 0:00:00]} 40. Bc4 {[%emt 0:00:00]} Bxc4 {[%emt 0:00:00]} 41. Nxc4 {
[%emt 0:00:00]} Rf3 {[%emt 0:00:00]} 42. Kg2 {[%emt 0:00:00]} Rc3 {[%emt 0:00:
00]} 43. Rd6 {[%emt 0:00:00]} Rc2+ {[%emt 0:00:00]} 44. Kf3 {[%emt 0:00:00]}
Rxa2 {[%emt 0:00:00]} 45. Rxg6+ {[%emt 0:00:00]} Kf7 {[%emt 0:00:00]} 46. Ne5+
{[%emt 0:00:00]} Ke7 {[%emt 0:00:00]} 47. Nxc6+ {[%emt 0:00:00]} Kd7 {[%emt 0:
00:00]} 48. Ne5+ {[%emt 0:00:00]} Ke7 {[%emt 0:00:00]} 49. Rh6 {[%emt 0:00:00]}
Ra3 {[%emt 0:00:00]} 50. Rxh5 {[%emt 0:00:00]} Rxb3+ {[%emt 0:00:00]} 51. Ke4 {
[%emt 0:00:00]} 1-0

[Event "Open international de Salon de Provence"]
[Site "Salon de Provence, France"]
[Date "2024.07.06"]
[Round "1.5"]
[White "Thiers, Jean-Jacques"]
[Black "Roux, Jean-Marie"]
[Result "1-0"]
[WhiteElo "1688"]
[BlackElo "1515"]
[PlyCount "73"]
[EventDate "2024.??.??"]
[TimeControl "1"]

1. d4 {[%emt 0:00:00]} d5 {[%emt 0:00:00]} 2. Bf4 {[%emt 0:00:00]} Nf6 {
[%emt 0:00:00]} 3. e3 {[%emt 0:00:00]} Bg4 {[%emt 0:00:00]} 4. Nf3 {[%emt 0:00:
00]} e6 {[%emt 0:00:00]} 5. c4 {[%emt 0:00:00]} dxc4 {[%emt 0:00:00]} 6. Bxc4 {
[%emt 0:00:00]} Be7 {[%emt 0:00:00]} 7. Nc3 {[%emt 0:00:00]} O-O {[%emt 0:00:
00]} 8. h3 {[%emt 0:00:00]} Bh5 {[%emt 0:00:00]} 9. Rc1 {[%emt 0:00:00]} Nc6 {
[%emt 0:00:00]} 10. a3 {[%emt 0:00:00]} a6 {[%emt 0:00:00]} 11. Bd3 {[%emt 0:
00:00]} b5 {[%emt 0:00:00]} 12. Nxb5 {[%emt 0:00:00]} axb5 {[%emt 0:00:00]} 13.
Rxc6 {[%emt 0:00:00]} Bd6 {[%emt 0:00:00]} 14. Bxd6 {[%emt 0:00:00]} cxd6 {
[%emt 0:00:00]} 15. Bxb5 {[%emt 0:00:00]} Rb8 {[%emt 0:00:00]} 16. a4 {[%emt 0:
00:00]} d5 {[%emt 0:04:26]} 17. Qc2 {[%emt 0:00:00]} Bxf3 {[%emt 0:00:00]} 18.
gxf3 {[%emt 0:00:00]} Nh5 {[%emt 0:00:00]} 19. Ke2 {[%emt 0:00:00]} Qg5 {
[%emt 0:00:00]} 20. Kf1 {[%emt 0:00:00]} e5 {[%emt 0:00:00]} 21. dxe5 {[%emt 0:
00:00]} Qxe5 {[%emt 0:00:00]} 22. f4 {[%emt 0:00:00]} Qe7 {[%emt 0:00:00]} 23.
Qf5 {[%emt 0:00:00]} Nf6 {[%emt 0:00:00]} 24. Rg1 {[%emt 0:00:00]} Kh8 {
[%emt 0:00:00]} 25. Bd3 {[%emt 0:00:00]} Ne4 {[%emt 0:00:00]} 26. Rc2 {[%emt 0:
00:00]} Rbd8 {[%emt 0:00:00]} 27. f3 {[%emt 0:00:00]} g6 {[%emt 0:00:00]} 28.
Qe5+ {[%emt 0:00:00]} Qxe5 {[%emt 0:00:00]} 29. fxe5 {[%emt 0:00:00]} Ra8 {
[%emt 0:00:00]} 30. Bb5 {[%emt 0:00:00]} Rad8 {[%emt 0:00:00]} 31. fxe4 {
[%emt 0:00:00]} dxe4 {[%emt 0:00:00]} 32. Ke2 {[%emt 0:00:00]} Kg7 {[%emt 0:00:
00]} 33. Rd1 {[%emt 0:00:00]} Ra8 {[%emt 0:00:00]} 34. Rc7 {[%emt 0:00:00]} h5
{[%emt 0:00:00]} 35. Rdd7 {[%emt 0:00:00]} Rae8 {[%emt 0:00:00]} 36. Rxf7+ {
[%emt 0:00:00]} Kg8 {[%emt 0:00:00]} 37. Rg7+ {[%emt 0:00:09] Ra8} 1-0

[Event "Open international de Salon de Provence"]
[Site "Salon de Provence, France"]
[Date "2024.07.06"]
[Round "1.6"]
[White "Ode, Sandro"]
[Black "Vrillet, Loan"]
[Result "0-1"]
[WhiteElo "1457"]
[BlackElo "1676"]
[PlyCount "58"]
[EventDate "2024.??.??"]
[TimeControl "1"]

1. e4 {[%emt 0:00:00]} c6 {[%emt 0:00:00]} 2. d4 {[%emt 0:00:00]} d5 {[%emt 0:
00:00]} 3. Nc3 {[%emt 0:00:00]} dxe4 {[%emt 0:00:00]} 4. Nxe4 {[%emt 0:00:00]}
Nd7 {[%emt 0:00:00]} 5. Nf3 {[%emt 0:00:00]} Ngf6 {[%emt 0:00:00]} 6. Bd3 {
[%emt 0:00:00]} Nxe4 {[%emt 0:00:00]} 7. Bxe4 {[%emt 0:00:00]} Nf6 {[%emt 0:00:
00]} 8. Qe2 {[%emt 0:00:00]} Nxe4 {[%emt 0:00:00]} 9. Qxe4 {[%emt 0:00:00]} Qd5
{[%emt 0:00:00]} 10. Qxd5 {[%emt 0:00:00]} cxd5 {[%emt 0:00:00]} 11. Bf4 {
[%emt 0:00:00]} h5 {[%emt 0:00:00]} 12. O-O {[%emt 0:00:00]} f6 {[%emt 0:00:00]
} 13. h4 {[%emt 0:00:00]} Bg4 {[%emt 0:00:00]} 14. Nd2 {[%emt 0:00:00]} e6 {
[%emt 0:00:00]} 15. Rac1 {[%emt 0:00:00]} b5 {[%emt 0:00:00]} 16. Rfe1 {
[%emt 0:00:00]} Rc8 {[%emt 0:00:00]} 17. f3 {[%emt 0:02:06]} Bf5 {[%emt 0:00:
00]} 18. Nf1 {[%emt 0:00:00]} Kd7 {[%emt 0:00:00]} 19. Ne3 {[%emt 0:00:00]} Bg6
{[%emt 0:00:00]} 20. Bh2 {[%emt 0:00:00]} Be7 {[%emt 0:00:00]} 21. c3 {[%emt 0:
00:00]} Rhf8 {[%emt 0:00:00]} 22. b4 {[%emt 0:00:00]} Rc6 {[%emt 0:00:00]} 23.
g4 {[%emt 0:00:00]} Rfc8 {[%emt 0:00:00]} 24. Nd1 {[%emt 0:00:00]} Ra6 {
[%emt 0:00:00]} 25. Ra1 {[%emt 0:00:00]} Bc2 {[%emt 0:00:00]} 26. Re3 {[%emt 0:
00:00]} Bxd1 {[%emt 0:00:00]} 27. Rxd1 {[%emt 0:00:00]} Rxa2 {[%emt 0:00:00]}
28. gxh5 {[%emt 0:00:00]} Ra3 {[%emt 0:00:00]} 29. Rdd3 {[%emt 0:00:00]} Rh8 {
[%emt 0:00:00]} 0-1

[Event "Open international de Salon de Provence"]
[Site "Salon de Provence, France"]
[Date "2024.07.06"]
[Round "1.7"]
[White "Lopez, Remy"]
[Black "Scamaroni, Jean-Paul"]
[Result "1-0"]
[WhiteElo "1486"]
[BlackElo "1654"]
[PlyCount "39"]
[EventDate "2024.??.??"]
[TimeControl "1"]

1. e4 {[%emt 0:00:00]} c5 {[%emt 0:00:00]} 2. Nc3 {[%emt 0:00:00]} d6 {[%emt 0:
00:00]} 3. f4 {[%emt 0:00:00]} e6 {[%emt 0:00:00]} 4. Nf3 {[%emt 0:00:00]} Nf6
{[%emt 0:00:00]} 5. Be2 {[%emt 0:00:00]} Be7 {[%emt 0:00:00]} 6. O-O {[%emt 0:
00:00]} a6 {[%emt 0:00:00]} 7. Qe1 {[%emt 0:00:00]} Nc6 {[%emt 0:00:00]} 8. a3
{[%emt 0:00:00]} O-O {[%emt 0:00:00]} 9. b3 {[%emt 0:00:00]} Qc7 {[%emt 0:00:
00]} 10. Qg3 {[%emt 0:00:00]} b5 {[%emt 0:00:00]} 11. Bd3 {[%emt 0:00:00]} b4 {
[%emt 0:00:00]} 12. Ne2 {[%emt 0:00:00]} a5 {[%emt 0:00:00]} 13. Bb2 {[%emt 0:
00:00]} bxa3 {[%emt 0:00:00]} 14. Rxa3 {[%emt 0:00:00]} Nb4 {[%emt 0:00:00]}
15. e5 {[%emt 0:00:00]} Ne8 {[%emt 0:00:00]} 16. exd6 {[%emt 0:00:00]} Bxd6 {
[%emt 0:00:00]} 17. Bxh7+ {[%emt 0:00:00]} Kh8 {[%emt 0:00:00]} 18. Qh3 {
[%emt 0:00:00]} Bxf4 {[%emt 0:00:00]} 19. Be4+ {[%emt 0:00:00]} Bh6 {[%emt 0:
00:00]} 20. Qxh6+ {[%emt 0:00:00]} 1-0

[Event "Open international de Salon de Provence"]
[Site "Salon de Provence, France"]
[Date "2024.07.06"]
[Round "1.8"]
[White "Schreiber Pitot, Beryl"]
[Black "Bretsztajn, Alain"]
[Result "1-0"]
[WhiteElo "1669"]
[BlackElo "1501"]
[PlyCount "105"]
[EventDate "2024.??.??"]
[TimeControl "1"]

1. d4 {[%emt 0:00:00]} d5 {[%emt 0:00:00]} 2. Bf4 {[%emt 0:00:00]} Nf6 {
[%emt 0:00:00]} 3. Nf3 {[%emt 0:00:00]} g6 {[%emt 0:00:00]} 4. e3 {[%emt 0:00:
00]} e6 {[%emt 0:00:00]} 5. h3 {[%emt 0:00:00]} a6 {[%emt 0:00:00]} 6. c4 {
[%emt 0:00:00]} Bg7 {[%emt 0:00:00]} 7. Nc3 {[%emt 0:00:00]} c6 {[%emt 0:00:00]
} 8. Be2 {[%emt 0:00:00]} h6 {[%emt 0:00:00]} 9. O-O {[%emt 0:00:00]} Nbd7 {
[%emt 0:00:00]} 10. Ne5 {[%emt 0:00:00]} Qe7 {[%emt 0:00:00]} 11. Nxd7 {
[%emt 0:00:00]} Qxd7 {[%emt 0:00:00]} 12. c5 {[%emt 0:00:00]} O-O {[%emt 0:00:
00]} 13. Bd6 {[%emt 0:02:50]} Re8 {[%emt 0:00:00]} 14. Bf3 {[%emt 0:00:00]} Qd8
{[%emt 0:00:00]} 15. Be5 {[%emt 0:00:00]} b6 {[%emt 0:00:00]} 16. b4 {[%emt 0:
00:00]} b5 {[%emt 0:00:00]} 17. a4 {[%emt 0:00:00]} Bd7 {[%emt 0:00:00]} 18. a5
{[%emt 0:00:00]} Bc8 {[%emt 0:00:00]} 19. Re1 {[%emt 0:00:00]} Nd7 {[%emt 0:00:
00]} 20. Bxg7 {[%emt 0:00:00]} Kxg7 {[%emt 0:00:00]} 21. g3 {[%emt 0:00:00]} e5
{[%emt 0:00:00]} 22. Kh2 {[%emt 0:00:00]} Nf6 {[%emt 0:00:00]} 23. Qc2 {
[%emt 0:00:00]} e4 {[%emt 0:00:00]} 24. Bg2 {[%emt 0:00:00]} Qd7 {[%emt 0:00:
00]} 25. Rh1 {[%emt 0:00:00]} Re6 {[%emt 0:03:46]} 26. Kg1 Nh7 27. h4 f5 28.
Rf1 Qf7 29. f4 exf3 30. Rxf3 Rf6 31. Ne2 h5 32. Nf4 Bd7 33. Nd3 Qe8 34. Ne5 Be6
35. Kf2 Nf8 36. Rf1 Ra7 37. Kg1 Rc7 38. Bh3 Qc8 39. Rf4 Kh6 40. g4 g5 41. hxg5+
Kxg5 42. Nf3+ Kg6 43. gxh5+ Kh6 44. Kh1 Nh7 45. Rg1 Qb7 46. Rg6+ Rxg6 47. hxg6
Nf6 48. Bxf5 Bg8 49. Qh2+ Kg7 50. Ng5 Re7 51. Rf3 Qc7 52. Qh4 Qd8 {[%emt 0:00:
00]} 53. Rh3 1-0

[Event "Open international de Salon de Provence"]
[Site "Salon de Provence, France"]
[Date "2024.07.07"]
[Round "2.1"]
[White "Gusain, Himal"]
[Black "Bedhouche, Rayan"]
[Result "1-0"]
[WhiteElo "2490"]
[BlackElo "2006"]
[PlyCount "37"]
[EventDate "2024.??.??"]
[TimeControl "1"]

1. Nf3 {[%emt 0:00:00]} c5 {[%emt 0:00:00]} 2. b3 {[%emt 0:00:00]} Nc6 {
[%emt 0:00:00]} 3. Bb2 {[%emt 0:00:00]} Nf6 {[%emt 0:00:00]} 4. g3 {[%emt 0:00:
00]} d5 {[%emt 0:00:00]} 5. Bg2 {[%emt 0:00:00]} e6 {[%emt 0:00:00]} 6. O-O {
[%emt 0:00:00]} Be7 {[%emt 0:00:00]} 7. e3 {[%emt 0:00:00]} O-O {[%emt 0:00:00]
} 8. c4 {[%emt 0:00:00]} dxc4 {[%emt 0:00:00]} 9. bxc4 {[%emt 0:00:00]} Qd3 {
[%emt 0:00:00]} 10. Qc1 {[%emt 0:00:00]} Rd8 {[%emt 0:00:00]} 11. Rd1 {[%emt 0:
00:00]} Rb8 {[%emt 0:00:00]} 12. Ne1 {[%emt 0:00:00]} Qd6 {[%emt 0:00:00]} 13.
d4 {[%emt 0:00:00]} e5 {[%emt 0:00:00]} 14. d5 {[%emt 0:00:00]} Na5 {[%emt 0:
00:00]} 15. Nd2 {[%emt 0:00:00]} b6 {[%emt 0:00:00]} 16. Nef3 {[%emt 0:00:00]}
Nd7 {[%emt 0:00:00]} 17. Ne4 {[%emt 0:00:00]} Qh6 {[%emt 0:00:00]} 18. Nxe5 {
[%emt 0:00:00]} Ba6 {[%emt 0:00:00]} 19. Nc6 {[%emt 0:00:00]} 1-0